fUSD/lending_fUSD_20240318
["ID","MTS","AMOUNT","RATE_DAILY","PERIOD"]
[319471304,1710799857543,-1120.6,0.00021917,2]
[319471305,1710799857558,-40338.6,0.00021917,2]
[319471306,1710799857576,-1192.63,0.00021917,2]
[319471307,1710799857590,-4121.83,0.00021917,2]
[319471308,1710799857607,-2259.16,0.00021917,2]
[319471309,1710799857623,-2157.68,0.00021917,2]
[319471310,1710799857637,-500.0,0.00021917,2]
[319471311,1710799857651,-2358.27,0.00021917,2]
[319471312,1710799857667,-500.0,0.00021917,2]
[319471313,1710799857680,-500.0,0.00021917,2]
[319471314,1710799857695,-500.0,0.00021917,2]
[319471315,1710799857709,-6231.23,0.00021917,2]
[319471316,1710799857723,-500.0,0.00021917,2]
[319471317,1710799857738,-244.77624414,0.00021917,2]
[319471318,1710799857752,-500.0,0.00021917,2]
[319471319,1710799857766,-2126.6,0.00021917,2]
[319471320,1710799857781,-500.0,0.00021917,2]
[319471321,1710799857795,-1791.47,0.00021917,2]
[319471322,1710799857811,-150.95,0.00021918,2]
[319471323,1710799857823,-1250.13,0.00021918,10]
[319471324,1710799857832,-250.0,0.00021918,2]
[319471325,1710799857841,-155.0,0.00021918,2]
[319471326,1710799857851,-150.0,0.00021918,2]
[319471327,1710799857862,-150.0,0.0002192,2]
[319471328,1710799857871,-150.0,0.00021925,2]
[319471329,1710799857880,-150.0,0.00021926,2]
[319471330,1710799858162,-150.0,0.00021927,2]
[319471331,1710799858199,-150.0,0.00021929,2]
[319471332,1710799858210,-150.0,0.00021932,2]
[319471333,1710799858220,-150.0,0.00021935,2]
[319471334,1710799858229,-150.0,0.00021935,2]
[319471335,1710799858237,-150.0,0.00021935,2]
[319471336,1710799858246,-150.0,0.00021936,2]
[319471337,1710799858255,-150.0,0.00021938,2]
[319471338,1710799858265,-150.0,0.00021939,2]
[319471339,1710799858274,-150.0,0.0002194,2]
[319471340,1710799858286,-150.0,0.00021943,2]
[319471341,1710799858295,-150.0,0.00021953,2]
[319471342,1710799858305,-150.0,0.00021959,2]
[319471343,1710799858314,-150.0,0.00021961,2]
[319471344,1710799858322,-150.0,0.00021961,2]
[319471345,1710799858332,-150.0,0.00021962,2]
[319471346,1710799858341,-150.0,0.00021963,2]
[319471347,1710799858352,-150.0,0.00021963,2]
[319471348,1710799858365,-300.0,0.00021965,2]
[319471349,1710799858375,-150.0,0.00021965,2]
[319471350,1710799858384,-196.81804155,0.00021969,2]
[319471351,1710799858394,-150.19442,0.00021969,2]
[319471352,1710799858419,-2039.69107,0.0002197,2]
[319471353,1710799858429,-150.0,0.0002197,2]
[319471354,1710799858441,-150.0,0.00021975,2]
[319471355,1710799858450,-150.0,0.00021982,2]
[319471356,1710799858460,-150.0,0.00021983,2]
[319471357,1710799858469,-150.0,0.00021986,2]
[319471358,1710799858479,-150.0,0.00021993,2]
[319471359,1710799858488,-150.0,0.00021993,2]
[319471360,1710799858497,-150.0,0.00021993,2]
[319471361,1710799858507,-1401.689,0.00021994,2]
[319471362,1710799858516,-150.0,0.00021995,2]
[319471363,1710799858526,-150.0,0.00021996,2]
[319471364,1710799858535,-779.74941329,0.00022,2]
[319471365,1710799858544,-150.0,0.00022003,2]
[319471366,1710799858553,-150.0,0.00022008,2]
[319471367,1710799858565,-150.0,0.00022011,2]
[319471368,1710799858574,-150.0,0.00022012,2]
[319471369,1710799858583,-150.0,0.00022012,2]
[319471370,1710799858592,-150.0,0.00022016,2]
[319471371,1710799858603,-150.0,0.00022027,2]
[319471372,1710799858612,-150.0,0.0002203,2]
[319471373,1710799858621,-150.0,0.00022032,2]
[319471374,1710799858630,-150.0,0.00022032,2]
[319471375,1710799858639,-150.0,0.00022034,2]
[319471376,1710799858650,-150.0,0.00022034,2]
[319471377,1710799858659,-150.0,0.00022034,2]
[319471378,1710799858668,-150.0,0.00022036,2]
[319471379,1710799858677,-150.0,0.00022042,2]
[319471380,1710799858686,-150.0,0.00022043,2]
[319471381,1710799858696,-150.0,0.00022043,2]
[319471382,1710799858706,-150.0,0.0002205,2]
[319471383,1710799858715,-150.0,0.00022051,2]
[319471384,1710799858724,-150.0,0.00022052,2]
[319471385,1710799858734,-150.0,0.00022053,2]
[319471386,1710799858745,-150.0,0.00022054,2]
[319471387,1710799858754,-150.0,0.00022059,2]
[319471388,1710799858764,-150.0,0.0002206,2]
[319471389,1710799858773,-150.0,0.00022063,2]
[319471390,1710799858782,-150.0,0.00022068,2]
[319471391,1710799858791,-150.0,0.00022069,2]
[319471392,1710799858800,-150.0,0.0002207,2]
[319471393,1710799858810,-150.0,0.00022071,2]
[319471394,1710799858820,-150.0,0.00022077,2]
[319471395,1710799858829,-150.0,0.00022078,2]
[319471396,1710799858838,-150.0,0.00022081,2]
[319471397,1710799858848,-150.0,0.00022082,2]
[319471398,1710799858857,-1500.0,0.00022082,2]
[319471399,1710799858866,-300.0,0.00022085,2]
[319471400,1710799858875,-300.0,0.00022089,2]
[319471401,1710799858884,-150.0,0.0002209,2]
[319471402,1710799858893,-163.359894,0.00022091,2]
[319471403,1710799858902,-161.73500112,0.00022091,2]
[319471404,1710799858911,-174.48453967,0.00022091,2]
[319471405,1710799858920,-289.20534576,0.00022091,2]
[319471406,1710799858929,-1332.0542139,0.00022091,5]
[319471407,1710799858938,-175.37399262,0.00022091,4]
[319471408,1710799858947,-4792.46713614,0.00022091,2]
[319471409,1710799858957,-150.0,0.00022095,2]
[319471410,1710799858966,-1000.0,0.000221,2]
[319471411,1710799858975,-150.0,0.00022101,2]
[319471412,1710799858985,-150.0,0.00022102,2]
[319471413,1710799858994,-150.0,0.00022104,2]
[319471414,1710799859003,-150.0,0.00022105,2]
[319471415,1710799859012,-150.0,0.00022106,2]
[319471416,1710799859022,-150.0,0.00022109,2]
[319471417,1710799859032,-150.0,0.00022111,2]
[319471418,1710799859041,-300.0,0.00022112,2]
[319471419,1710799859051,-150.0,0.00022112,2]
[319471420,1710799859060,-150.0,0.00022113,2]
[319471421,1710799859069,-150.0,0.00022116,2]
[319471422,1710799859079,-150.0,0.0002212,2]
[319471423,1710799859087,-150.0,0.00022126,2]
[319471424,1710799859097,-150.0,0.00022126,2]
[319471425,1710799859107,-150.0,0.00022126,2]
[319471426,1710799859116,-150.0,0.00022129,2]
[319471427,1710799859125,-150.0,0.00022132,2]
[319471428,1710799859135,-150.0,0.00022134,2]
[319471429,1710799859144,-150.0,0.00022134,2]
[319471430,1710799859154,-150.0,0.00022137,2]
[319471431,1710799859163,-150.0,0.00022139,2]
[319471432,1710799859173,-1500.0,0.00022142,2]
[319471433,1710799859183,-300.0,0.00022144,2]
[319471434,1710799859192,-150.0,0.00022151,2]
[319471435,1710799859201,-150.0,0.00022152,2]
[319471436,1710799859210,-150.0,0.00022152,2]
[319471437,1710799859219,-150.0,0.00022152,2]
[319471438,1710799859228,-150.0,0.00022153,2]
[319471439,1710799859237,-150.0,0.00022153,2]
[319471440,1710799859246,-150.0,0.00022156,2]
[319471441,1710799859255,-1222.07660728,0.00022159,2]
[319471442,1710799859265,-150.0,0.00022161,2]
[319471443,1710799859274,-150.0,0.00022161,2]
[319471444,1710799859283,-150.0,0.00022162,2]
[319471445,1710799859293,-5850.1559099,0.00022166,2]
[319471446,1710799859302,-150.0,0.00022167,2]
[319471447,1710799859311,-150.0,0.00022172,2]
[319471448,1710799859320,-150.0,0.00022174,2]
[319471449,1710799859329,-150.0,0.00022176,2]
[319471450,1710799859339,-150.0,0.00022182,2]
[319471451,1710799859349,-500.0,0.00022183,2]
[319471452,1710799859358,-162.6041618,0.00022183,2]
[319471453,1710799859367,-150.0,0.00022185,2]
[319471454,1710799859375,-1753.0360921,0.00022185,2]
[319471455,1710799859385,-1085.8585439,0.00022185,2]
[319471456,1710799859395,-13661.8741318,0.00022185,2]
[319471457,1710799859404,-188.4100518,0.00022185,2]
[319471458,1710799859414,-150.0,0.00022188,2]
[319471459,1710799859423,-1000.0,0.0002219,2]
[319471460,1710799859445,-205.27555849,0.0002219,2]
[319471461,1710799859454,-5003.12754987,0.0002219,2]
[319471462,1710799859464,-500.0,0.0002219,2]
[319471463,1710799859473,-500.0,0.0002219,2]
[319471464,1710799859482,-531.49,0.0002219,2]
[319471465,1710799859491,-153.05383812,0.0002219,2]
[319471466,1710799859501,-500.0,0.00022191,2]
[319471467,1710799859511,-500.0,0.00022191,2]
[319471468,1710799859520,-500.0,0.00022191,2]
[319471469,1710799859530,-500.0,0.00022191,2]
[319471470,1710799859539,-500.0,0.00022191,2]
[319471471,1710799859549,-500.0,0.00022191,2]
[319471472,1710799859558,-500.0,0.00022191,2]
[319471473,1710799859571,-305.08688772,0.00022191,2]
[319471474,1710799859581,-447.46383673,0.00022191,2]
[319471475,1710799859591,-500.0,0.00022191,2]
[319471476,1710799859602,-500.0,0.00022191,2]
[319471477,1710799859611,-500.0,0.00022191,2]
[319471478,1710799859621,-249.14810764,0.00022191,2]
[319471479,1710799859631,-582.72815182,0.00022191,2]
[319471480,1710799859641,-176.69746043,0.00022191,2]
[319471481,1710799859649,-500.0,0.00022191,2]
[319471482,1710799859660,-500.0,0.00022191,2]
[319471483,1710799859669,-500.0,0.00022191,2]
[319471484,1710799859679,-479.49965917,0.00022191,2]
[319471485,1710799859688,-500.0,0.00022191,2]
[319471486,1710799859697,-500.0,0.00022191,2]
[319471487,1710799859706,-500.0,0.00022191,2]
[319471488,1710799859715,-500.0,0.00022191,2]
[319471489,1710799859724,-500.0,0.00022191,2]
[319471490,1710799859733,-500.0,0.00022191,2]
[319471491,1710799859742,-500.0,0.00022191,2]
[319471492,1710799859751,-500.0,0.00022191,2]
[319471493,1710799859761,-754.65,0.00022191,2]
[319471494,1710799859770,-500.0,0.00022191,2]
[319471495,1710799859779,-500.0,0.00022191,2]
[319471496,1710799859789,-500.0,0.00022191,2]
[319471497,1710799859798,-500.0,0.00022191,2]
[319471498,1710799859807,-1183.48,0.00022191,2]
[319471499,1710799859818,-500.0,0.00022191,2]
[319471500,1710799859827,-500.0,0.00022191,2]
[319471501,1710799859836,-500.0,0.00022191,2]
[319471502,1710799859845,-500.0,0.00022191,2]
[319471503,1710799859855,-500.0,0.00022191,2]
[319471504,1710799859865,-500.0,0.00022191,2]
[319471505,1710799859875,-500.0,0.00022191,2]
[319471506,1710799859884,-500.0,0.00022191,2]
[319471507,1710799859894,-500.0,0.00022191,2]
[319471508,1710799859903,-500.0,0.00022191,2]
[319471509,1710799859912,-841.06,0.00022191,2]
[319471510,1710799859921,-1050.21,0.00022191,2]
[319471511,1710799859930,-603.24,0.00022191,2]
[319471512,1710799859939,-500.0,0.00022191,2]
[319471513,1710799859949,-500.0,0.00022191,2]
[319471514,1710799859958,-864.95,0.00022191,2]
[319471515,1710799859967,-500.0,0.00022191,2]
[319471516,1710799859977,-801.98,0.00022191,2]
[319471517,1710799859986,-500.0,0.00022191,2]
[319471518,1710799859995,-293.80335932,0.00022191,2]
[319471519,1710799860004,-2023.13,0.00022191,2]
[319471520,1710799860013,-500.0,0.00022191,2]
[319471521,1710799860022,-500.0,0.00022191,2]
[319471522,1710799860031,-500.0,0.00022191,2]
[319471523,1710799860041,-794.11,0.00022191,2]
[319471524,1710799860050,-500.0,0.00022191,2]
[319471525,1710799860059,-2257.25,0.00022191,2]
[319471526,1710799860068,-1080.91,0.00022191,2]
[319471527,1710799860078,-753.34,0.00022191,2]
[319471528,1710799860088,-500.0,0.00022191,2]
[319471529,1710799860099,-841.73,0.00022191,2]
[319471530,1710799860108,-500.0,0.00022191,2]
[319471531,1710799860118,-2219.16,0.00022191,2]
[319471532,1710799860127,-637.28,0.00022191,2]
[319471533,1710799860136,-214.53612163,0.00022191,2]
[319471534,1710799860145,-500.0,0.00022191,2]
[319471535,1710799860155,-500.0,0.00022191,2]
[319471536,1710799860164,-822.95,0.00022191,2]
[319471537,1710799860173,-532.03,0.00022191,2]
[319471538,1710799860182,-500.0,0.00022191,2]
[319471539,1710799860191,-500.0,0.00022191,2]
[319471540,1710799860200,-158.69963175,0.00022191,2]
[319471541,1710799860209,-500.0,0.00022191,2]
[319471542,1710799860219,-500.0,0.00022191,2]
[319471543,1710799860228,-500.0,0.00022191,2]
[319471544,1710799860237,-500.0,0.00022191,2]
[319471545,1710799860247,-666.77,0.00022191,2]
[319471546,1710799860256,-500.0,0.00022191,2]
[319471547,1710799860266,-500.0,0.00022191,2]
[319471548,1710799860276,-500.0,0.00022191,2]
[319471549,1710799860285,-2410.75,0.00022191,2]
[319471550,1710799860294,-242.27261239,0.00022191,2]
[319471551,1710799860303,-500.0,0.00022191,2]
[319471552,1710799860312,-1083.62,0.00022191,2]
[319471553,1710799860321,-500.0,0.00022191,2]
[319471554,1710799860331,-1096.76,0.00022191,2]
[319471555,1710799860340,-1153.52,0.00022191,2]
[319471556,1710799860350,-500.0,0.00022191,2]
[319471557,1710799860359,-500.0,0.00022191,2]
[319471558,1710799860369,-500.0,0.00022191,2]
[319471559,1710799860378,-500.0,0.00022191,2]
[319471560,1710799860388,-1579.95,0.00022191,2]
[319471561,1710799860397,-1079.02,0.00022191,2]
[319471562,1710799860407,-500.0,0.00022191,2]
[319471563,1710799860416,-500.0,0.00022191,2]
[319471564,1710799860425,-500.0,0.00022191,2]
[319471565,1710799860434,-500.0,0.00022191,2]
[319471566,1710799860444,-500.0,0.00022191,2]
[319471567,1710799860453,-604.92,0.00022191,2]
[319471568,1710799860463,-2112.17,0.00022191,2]
[319471569,1710799860472,-500.0,0.00022191,2]
[319471570,1710799860482,-788.06,0.00022191,2]
[319471571,1710799860491,-965.6,0.00022191,2]
[319471572,1710799860500,-500.0,0.00022191,2]
[319471573,1710799860509,-500.0,0.00022191,2]
[319471574,1710799860519,-567.24,0.00022191,2]
[319471575,1710799860528,-1057.53,0.00022191,2]
[319471576,1710799860537,-500.0,0.00022191,2]
[319471577,1710799860546,-500.0,0.00022191,2]
[319471578,1710799860555,-1346.77,0.00022191,2]
[319471579,1710799860566,-712.98,0.00022191,2]
[319471580,1710799860576,-624.81,0.00022191,2]
[319471581,1710799860585,-1820.6,0.00022191,2]
[319471582,1710799860594,-500.0,0.00022191,2]
[319471583,1710799860606,-500.0,0.00022191,2]
[319471584,1710799860615,-750.79,0.00022191,2]
[319471585,1710799860625,-593.51,0.00022191,2]
[319471586,1710799860634,-628.64,0.00022191,2]
[319471587,1710799860644,-787.89,0.00022191,2]
[319471588,1710799860653,-750.42,0.00022191,2]
[319471589,1710799860663,-622.98,0.00022191,2]
[319471590,1710799860672,-500.0,0.00022191,2]
[319471591,1710799860681,-1628.79,0.00022191,2]
[319471592,1710799860690,-500.0,0.00022191,2]
[319471593,1710799860699,-500.0,0.00022191,2]
[319471594,1710799860708,-500.0,0.00022191,2]
[319471595,1710799860718,-837.33,0.00022191,2]
[319471596,1710799860727,-830.73,0.00022191,2]
[319471597,1710799860736,-500.0,0.00022191,2]
[319471598,1710799860745,-3414.73,0.00022191,2]
[319471599,1710799860755,-500.0,0.00022191,2]
[319471600,1710799860764,-1594.83,0.00022191,2]
[319471601,1710799860773,-645.97745608,0.00022191,2]
[319471602,1710799860782,-1565.76,0.00022191,2]
[319471603,1710799860791,-503.51161468,0.00022191,2]
[319471604,1710799860800,-500.0,0.00022191,2]
[319471605,1710799860809,-500.0,0.00022191,2]
[319471606,1710799860819,-2289.86,0.00022191,2]
[319471607,1710799860828,-500.0,0.00022191,2]
[319471608,1710799860837,-328.95925122,0.00022191,2]
[319471609,1710799860846,-1043.46,0.00022191,2]
[319471610,1710799860858,-2327.27,0.00022191,2]
[319471611,1710799860867,-1166.79,0.00022191,2]
[319471612,1710799860876,-549.91,0.00022191,2]
[319471613,1710799860885,-568.66,0.00022191,2]
[319471614,1710799860894,-500.0,0.00022191,2]
[319471615,1710799860903,-771.19,0.00022191,2]
[319471616,1710799860913,-2753.66,0.00022191,2]
[319471617,1710799860921,-1513.08,0.00022191,2]
[319471618,1710799860930,-1842.48,0.00022191,2]
[319471619,1710799860939,-500.0,0.00022191,2]
[319471620,1710799860949,-500.0,0.00022191,2]
[319471621,1710799860958,-500.0,0.00022191,2]
[319471622,1710799860967,-500.0,0.00022191,2]
[319471623,1710799860976,-1460.74,0.00022191,2]
[319471624,1710799860986,-895.46,0.00022191,2]
[319471625,1710799860996,-500.0,0.00022191,2]
[319471626,1710799861005,-942.07,0.00022191,2]
[319471627,1710799861015,-1989.79,0.00022191,2]
[319471628,1710799861025,-500.0,0.00022191,2]
[319471629,1710799861034,-1990.34,0.00022191,2]
[319471630,1710799861043,-500.0,0.00022191,2]
[319471631,1710799861052,-570.11,0.00022191,2]
[319471632,1710799861062,-594.54,0.00022191,2]
[319471633,1710799861071,-500.0,0.00022191,2]
[319471634,1710799861080,-500.0,0.00022191,2]
[319471635,1710799861090,-500.0,0.00022191,2]
[319471636,1710799861100,-500.0,0.00022191,2]
[319471637,1710799861109,-500.0,0.00022191,2]
[319471638,1710799861119,-2010.18,0.00022191,2]
[319471639,1710799861128,-500.0,0.00022191,2]
[319471640,1710799861138,-500.0,0.00022191,2]
[319471641,1710799861147,-500.0,0.00022191,2]
[319471642,1710799861156,-500.0,0.00022191,2]
[319471643,1710799861165,-500.0,0.00022191,2]
[319471644,1710799861175,-1225.65,0.00022191,2]
[319471645,1710799861184,-1089.38,0.00022191,2]
[319471646,1710799861193,-500.0,0.00022191,2]
[319471647,1710799861203,-2976.15,0.00022191,2]
[319471648,1710799861212,-705.19,0.00022191,2]
[319471649,1710799861221,-508.99,0.00022191,2]
[319471650,1710799861230,-500.0,0.00022191,2]
[319471651,1710799861239,-501.15,0.00022191,2]
[319471652,1710799861249,-1173.9,0.00022191,2]
[319471653,1710799861258,-500.0,0.00022191,2]
[319471654,1710799861268,-1787.1,0.00022191,2]
[319471655,1710799861278,-500.0,0.00022191,2]
[319471656,1710799861288,-500.0,0.00022191,2]
[319471657,1710799861298,-1969.89,0.00022191,2]
[319471658,1710799861308,-551.56,0.00022191,2]
[319471659,1710799861318,-500.0,0.00022191,2]
[319471660,1710799861327,-500.0,0.00022191,2]
[319471661,1710799861337,-634.39,0.00022191,2]
[319471662,1710799861347,-515.85,0.00022191,2]
[319471663,1710799861358,-500.0,0.00022191,2]
[319471664,1710799861544,-500.0,0.00022191,2]
[319471665,1710799861567,-1763.14,0.00022191,2]
[319471666,1710799861577,-500.0,0.00022191,2]
[319471667,1710799861587,-500.91671867,0.00022191,2]
[319471668,1710799861596,-1610.23,0.00022191,2]
[319471669,1710799861607,-500.0,0.00022191,2]
[319471670,1710799861618,-500.0,0.00022191,2]
[319471671,1710799861628,-698.44,0.00022191,2]
[319471672,1710799861642,-757.78,0.00022191,2]
[319471673,1710799861662,-500.0,0.00022191,2]
[319471674,1710799861681,-500.0,0.00022191,2]
[319471675,1710799861701,-500.0,0.00022191,2]
[319471676,1710799861717,-500.0,0.00022191,2]
[319471677,1710799861726,-500.0,0.00022191,2]
[319471678,1710799861736,-3621.53,0.00022191,2]
[319471679,1710799861745,-500.0,0.00022191,2]
[319471680,1710799861754,-1107.01,0.00022191,2]
[319471681,1710799861764,-500.0,0.00022191,2]
[319471682,1710799861773,-833.03,0.00022191,2]
[319471683,1710799861782,-500.0,0.00022191,2]
[319471684,1710799861791,-3272.98,0.00022191,2]
[319471685,1710799861801,-500.0,0.00022191,2]
[319471686,1710799861810,-500.0,0.00022191,2]
[319471687,1710799861819,-617.42,0.00022191,2]
[319471688,1710799861828,-500.0,0.00022191,2]
[319471689,1710799861838,-500.0,0.00022191,2]
[319471690,1710799861847,-605.96818617,0.00022191,2]
[319471691,1710799861857,-1059.1,0.00022191,2]
[319471692,1710799861866,-500.0,0.00022191,2]
[319471693,1710799861876,-500.0,0.00022191,2]
[319471694,1710799861885,-2995.13,0.00022191,2]
[319471695,1710799861896,-500.0,0.00022191,2]
[319471696,1710799861906,-555.92059413,0.00022191,2]
[319471697,1710799861917,-500.0,0.00022191,2]
[319471698,1710799861928,-500.0,0.00022191,2]
[319471699,1710799861940,-1379.17,0.00022191,2]
[319471700,1710799861952,-500.0,0.00022191,2]
[319471701,1710799861964,-2205.14,0.00022191,2]
[319471702,1710799861974,-1296.97,0.00022191,2]
[319471703,1710799861985,-684.91,0.00022191,2]
[319471704,1710799861994,-500.0,0.00022191,2]
[319471705,1710799862003,-500.0,0.00022191,2]
[319471706,1710799862013,-500.0,0.00022191,2]
[319471707,1710799862024,-1167.23,0.00022191,2]
[319471708,1710799862033,-500.0,0.00022191,2]
[319471709,1710799862043,-1111.67,0.00022191,2]
[319471710,1710799862053,-500.0,0.00022191,2]
[319471711,1710799862062,-500.0,0.00022191,2]
[319471712,1710799862071,-1840.74,0.00022191,2]
[319471713,1710799862081,-1159.15,0.00022191,2]
[319471714,1710799862090,-501.46737608,0.00022191,2]
[319471715,1710799862099,-500.0,0.00022191,2]
[319471716,1710799862108,-500.0,0.00022191,2]
[319471717,1710799862117,-1071.26,0.00022191,2]
[319471718,1710799862126,-732.2,0.00022191,2]
[319471719,1710799862135,-500.0,0.00022191,2]
[319471720,1710799862144,-2487.12,0.00022191,2]
[319471721,1710799862153,-500.0,0.00022191,2]
[319471722,1710799862162,-1409.81,0.00022191,2]
[319471723,1710799862171,-500.0,0.00022191,2]
[319471724,1710799862180,-2258.29,0.00022191,2]
[319471725,1710799862189,-500.0,0.00022191,2]
[319471726,1710799862198,-885.61,0.00022191,2]
[319471727,1710799862208,-536.40071864,0.00022191,2]
[319471728,1710799862217,-500.0,0.00022191,2]
[319471729,1710799862226,-728.7,0.00022191,2]
[319471730,1710799862236,-500.0,0.00022191,2]
[319471731,1710799862245,-500.0,0.00022191,2]
[319471732,1710799862254,-981.29,0.00022191,2]
[319471733,1710799862263,-3027.38,0.00022191,2]
[319471734,1710799862273,-619.02,0.00022191,2]
[319471735,1710799862282,-500.0,0.00022191,2]
[319471736,1710799862291,-500.0,0.00022191,2]
[319471737,1710799862301,-2230.77,0.00022191,2]
[319471738,1710799862310,-2148.85,0.00022191,2]
[319471739,1710799862319,-294.52677972,0.00022191,2]
[319471740,1710799862329,-500.0,0.00022191,2]
[319471741,1710799862338,-847.31,0.00022191,2]
[319471742,1710799862348,-500.0,0.00022191,2]
[319471743,1710799862358,-500.0,0.00022191,2]
[319471744,1710799862368,-500.0,0.00022191,2]
[319471745,1710799862377,-500.0,0.00022191,2]
[319471746,1710799862386,-500.0,0.00022191,2]
[319471747,1710799862395,-1040.92,0.00022191,2]
[319471748,1710799862404,-1016.05,0.00022191,2]
[319471749,1710799862414,-625.78,0.00022191,2]
[319471750,1710799862423,-500.0,0.00022191,2]
[319471751,1710799862432,-500.0,0.00022191,2]
[319471752,1710799862441,-500.0,0.00022191,2]
[319471753,1710799862450,-673.87,0.00022191,2]
[319471754,1710799862459,-1988.29,0.00022191,2]
[319471755,1710799862469,-500.0,0.00022191,2]
[319471756,1710799862478,-803.43,0.00022191,2]
[319471757,1710799862487,-2712.0,0.00022191,2]
[319471758,1710799862496,-618.27,0.00022191,2]
[319471759,1710799862506,-925.33,0.00022191,2]
[319471760,1710799862516,-1492.36,0.00022191,2]
[319471761,1710799862525,-1934.24,0.00022191,2]
[319471762,1710799862534,-1347.96,0.00022191,2]
[319471763,1710799862544,-500.0,0.00022191,2]
[319471764,1710799862553,-500.0,0.00022191,2]
[319471765,1710799862563,-500.0,0.00022191,2]
[319471766,1710799862574,-618.35,0.00022191,2]
[319471767,1710799862583,-500.0,0.00022191,2]
[319471768,1710799862594,-500.0,0.00022191,2]
[319471769,1710799862604,-736.87,0.00022191,2]
[319471770,1710799862614,-3249.34,0.00022191,2]
[319471771,1710799862623,-500.0,0.00022191,2]
[319471772,1710799862633,-500.0,0.00022191,2]
[319471773,1710799862642,-1048.99,0.00022191,2]
[319471774,1710799862652,-2027.85,0.00022191,2]
[319471775,1710799862661,-500.0,0.00022191,2]
[319471776,1710799862671,-555.58,0.00022191,2]
[319471777,1710799862680,-695.99,0.00022191,2]
[319471778,1710799862689,-500.0,0.00022191,2]
[319471779,1710799862698,-500.0,0.00022191,2]
[319471780,1710799862708,-1686.42,0.00022191,2]
[319471781,1710799862717,-500.0,0.00022191,2]
[319471782,1710799862727,-305.8778999,0.00022191,10]
[319471783,1710799862737,-500.0,0.00022191,2]
[319471784,1710799862746,-500.0,0.00022191,2]
[319471785,1710799862755,-500.0,0.00022191,2]
[319471786,1710799862765,-407.6411704,0.00022191,2]
[319471787,1710799862774,-3300.65,0.00022191,2]
[319471788,1710799862784,-1879.8,0.00022191,2]
[319471789,1710799862793,-689.62,0.00022191,2]
[319471790,1710799862803,-600.13,0.00022191,2]
[319471791,1710799862812,-3602.93,0.00022191,2]
[319471792,1710799862821,-500.0,0.00022191,2]
[319471793,1710799862831,-500.0,0.00022191,2]
[319471794,1710799862839,-500.0,0.00022191,2]
[319471795,1710799862849,-500.0,0.00022191,2]
[319471796,1710799862859,-500.0,0.00022191,2]
[319471797,1710799862869,-500.0,0.00022191,2]
[319471798,1710799862878,-839.53,0.00022191,2]
[319471799,1710799862887,-734.91,0.00022191,2]
[319471800,1710799862896,-1753.56,0.00022191,2]
[319471801,1710799862906,-500.0,0.00022191,2]
[319471802,1710799862916,-839.74,0.00022191,2]
[319471803,1710799862925,-500.0,0.00022191,2]